bitfinex-derivatives/quotes_SOLF0:USTF0_20250211
["timestamp","ask_amount","ask_price","bid_price","bid_amount"]
[1739238457678,1.96,204.15,204.12,3.10391203]
[1739238457974,1.96,204.15,204.08,13.95644671]
[1739238458171,1.96,204.15,204.09,3.10399734]
[1739238458379,1.96,204.15,204.1,3.05077382]
[1739238458574,1.96,204.15,204.11,3.05077382]
[1739238458774,1.96,204.15,204.08,9.05724671]
[1739238458979,1.96,204.15,204.09,3.05089513]
[1739238459179,1.96,204.15,204.1,3.05089513]
[1739238459380,1.96,204.15,204.11,3.0511369]
[1739238459572,1.96,204.15,204.05,12.65724671]
[1739238459772,1.96,204.15,204.06,3.05164186]
[1739238459982,1.96,204.15,204.07,3.05164186]
[1739238460184,1.96,204.15,204.05,13.95704671]
[1739238460185,1.96,204.15,204.08,3.05164186]
[1739238460477,4.8981,204.13,204.04,4.9002]
[1739238460682,4.8981,204.13,204.05,3.05205802]
[1739238460883,4.8981,204.13,204.02,9.05724671]
[1739238460884,0.03445222,204.11,204.06,3.05205802]
[1739238461083,0.03445222,204.11,204.07,3.05205802]
[1739238461383,1.96,204.1,204.02,13.95794671]
[1739238461684,1.96,204.1,204.03,3.05201888]
[1739238461980,1.96,204.1,204.04,3.05201888]
[1739238462282,1.96,204.1,204.05,3.05201888]
[1739238462477,1.96,204.1,204.02,9.05724671]
[1739238462680,1.96,204.1,204.03,3.05218667]
[1739238462872,1.96,204.1,204.04,3.05218667]
[1739238463074,1.96,204.1,204.05,3.05218667]
[1739238463380,1.96,204.1,204.02,9.05724671]
[1739238463582,1.96,204.1,204.03,3.05166715]
[1739238463878,5.0046,204.1,204.02,9.05724671]
[1739238464083,5.0046,204.1,204.03,3.05218846]
[1739238464282,5.0046,204.1,203.99,12.65724671]
[1739238464585,0.0322295,204.09,204.0,3.05156611]
[1739238464783,0.0322295,204.09,204.01,3.05156611]
[1739238465084,0.0322295,204.09,204.02,3.05156611]
[1739238465286,4.8993,204.08,204.03,3.05156611]
[1739238465587,0.0322295,204.09,203.99,9.05724671]
[1739238465879,0.0322295,204.09,204.0,3.05202577]
[1739238466184,0.0322295,204.09,204.01,3.05202577]
[1739238467084,4.9314295,204.09,203.99,9.05724671]
[1739238467280,0.0322295,204.09,204.0,3.05079573]
[1739238467476,0.0322295,204.09,204.01,3.05079573]
[1739238467688,0.0322295,204.09,203.99,9.05724671]
[1739238467882,0.0322295,204.09,204.0,3.04966533]
[1739238468091,0.0322295,204.09,203.99,9.05724671]
[1739238468293,0.0322295,204.09,204.0,3.04959911]
[1739238468487,0.0322295,204.09,203.99,9.05724671]
[1739238468886,0.0322295,204.09,204.0,4.9012]
[1739238471094,1.96,204.08,203.99,13.95854671]
[1739238471289,1.96,204.08,203.99,9.05724671]
[1739238472690,1.96,204.08,204.0,4.9011]
[1739238472992,1.96,204.08,203.99,9.05724671]
[1739238473292,1.96,204.08,204.0,4.9011]
[1739238473491,1.96,204.08,203.99,9.05724671]
[1739238474393,1.96,204.08,203.99,13.95844671]
[1739238475693,1.96,204.08,204.02,5.80745115]
[1739238476090,0.03568223,204.07,204.02,5.80745115]
[1739238476292,5.84313338,204.07,203.98,5.80745115]
[1739238476992,10.70745115,204.05,203.98,5.80745115]
[1739238477498,5.80745115,204.05,203.98,5.80745115]
[1739238478090,4.9004,204.04,203.98,5.80745115]
[1739238478295,5.80745115,204.05,203.98,5.80745115]
[1739238478696,5.80745115,204.05,203.92,3.6]
[1739238478697,4.9005,204.03,203.96,5.80745115]
[1739238479097,0.03488036,204.02,203.96,5.80745115]
[1739238479994,0.03488036,204.02,203.98,5.80745115]
[1739238484597,0.03488036,204.02,203.96,5.80745115]
[1739238484792,0.03488036,204.02,203.98,5.80745115]
[1739238484997,0.03488036,204.02,204.0,5.80745115]
[1739238485501,0.03488036,204.02,203.98,5.80745115]
[1739238488403,0.03488036,204.02,204.0,5.80745115]
[1739238488702,0.03488036,204.02,203.98,5.80745115]
[1739238490006,0.03488036,204.02,203.96,5.80745115]
[1739238490201,1.96,204.03,203.96,5.80745115]
[1739238490499,0.03395357,204.01,203.96,5.80745115]
[1739238492903,0.03395357,204.01,203.98,5.80745115]
[1739238496096,5.84140472,204.01,203.93,5.80745115]
[1739238496304,5.80745115,203.95,203.82,5.80745115]
[1739238496504,5.80745115,203.91,203.84,5.80745115]
[1739238497006,7.80011412,203.91,203.84,5.80745115]
[1739238497510,7.80011412,203.91,203.81,31.45165874]
[1739238497511,1.99266297,203.91,203.89,5.80745115]
[1739238497907,1.99266297,203.91,203.87,5.80745115]
[1739238498902,1.99266297,203.91,203.85,5.80745115]
[1739238502009,1.99266297,203.91,203.73,26.54605874]
[1739238502010,5.80745115,203.87,203.81,5.80745115]
[1739238502715,0.03578725,203.86,203.81,5.80745115]
[1739238503318,0.03578725,203.86,203.71,6.63651468]
[1739238503617,5.80745115,203.83,203.75,5.80745115]
[1739238503814,0.03509616,203.81,203.75,5.80745115]
[1739238504116,0.03509616,203.81,203.71,10.23651468]
[1739238504117,0.03509616,203.81,203.79,5.80745115]
[1739238505709,0.03509616,203.81,203.8,4.906]
[1739238506310,1.96,203.88,203.79,5.80745115]
[1739238506509,5.80745115,203.94,203.87,5.80745115]
[1739238506712,5.80745115,203.92,203.85,5.80745115]
[1739238507116,1.96,203.91,203.85,5.80745115]
[1739238507522,0.03109355,203.9,203.86,0.03124852]
[1739238511826,0.03109355,203.9,203.86,4.93564852]
[1739238512026,0.03109355,203.9,203.86,0.03124852]
[1739238512828,9.08997997,203.88,203.86,0.03124852]
[1739238517225,0.03109355,203.9,203.86,0.03124852]
[1739238517930,4.9041,203.88,203.86,0.03124852]
[1739238518924,4.9043,203.87,203.86,0.03124852]
[1739238521735,4.9043,203.87,203.86,4.852e-05]
[1739238521935,9.08997997,203.88,203.66,88.18]
[1739238521936,9.08997997,203.88,203.69,9.08997997]
[1739238522132,9.08997997,203.83,203.69,9.08997997]
[1739238522634,1.96,203.82,203.69,9.08997997]
[1739238522827,4.9065,203.78,203.69,9.08997997]
[1739238523026,0.03691003,203.78,203.69,9.08997997]
[1739238524239,4.94341003,203.78,203.69,9.08997997]
[1739238524542,0.03691003,203.78,203.69,9.08997997]
[1739238526632,4.9069,203.77,203.66,13.99907997]
[1739238526837,4.9069,203.77,203.66,17.59907997]
[1739238527033,0.03357641,203.74,203.66,17.59907997]
[1739238527239,0.03357641,203.74,203.66,9.08997997]
[1739238528344,0.03357641,203.74,203.64,3.6]
[1739238528841,0.03357641,203.74,203.63,12.68997997]
[1739238529041,0.03357641,203.74,203.64,4.9098]
[1739238529243,0.03357641,203.74,203.63,12.68997997]
[1739238529638,0.03357641,203.74,203.65,4.9094]
[1739238531046,1.99357641,203.74,203.65,4.9094]
[1739238531642,5.82789221,203.73,203.66,5.82789221]
[1739238532342,5.82789221,203.71,203.64,5.82789221]
[1739238532741,0.03257563,203.7,203.64,5.82789221]
[1739238533346,0.03257563,203.7,203.64,10.73769221]
[1739238534345,0.03257563,203.7,203.64,5.82789221]
[1739238535038,0.03257563,203.7,203.64,10.73759221]
[1739238535243,0.03257563,203.7,203.66,5.82789221]
[1739238539546,0.03257563,203.7,203.62,3.6]
[1739238539756,0.03257563,203.7,203.68,5.82789221]
[1739238540852,1.96,203.8,203.72,4.9077]
[1739238541051,5.82789221,203.79,203.73,5.82789221]
[1739238541252,5.82789221,203.79,203.71,5.82789221]
[1739238541447,5.82789221,203.77,203.69,5.82789221]
[1739238541654,5.82789221,203.73,203.65,5.82789221]
[1739238541848,192.96,203.89,203.67,0.03582284]
[1739238541849,5.82789221,203.71,203.67,0.03582284]
[1739238542046,5.82789221,203.71,203.65,5.82789221]
[1739238542245,5.82789221,203.71,203.67,0.03452003]
[1739238542246,5.85893698,203.71,203.67,0.03452003]
[1739238542646,0.03104477,203.71,203.67,0.03452003]
[1739238543153,0.03104477,203.71,203.67,5.86241224]
[1739238543357,0.03104477,203.71,203.69,5.82789221]
[1739238543554,0.03104477,203.71,203.7,9.10004009]
[1739238543963,0.03104477,203.71,203.7,14.00844009]
[1739238544347,1.96,203.77,203.7,9.10004009]
[1739238544554,1.96,203.77,203.73,9.10004009]
[1739238544852,1.96,203.83,203.76,9.10004009]
[1739238545156,9.10004009,203.89,203.76,9.10004009]
[1739238545353,1.96,203.88,203.76,9.10004009]
[1739238545654,0.03717898,203.85,203.8,0.03569329]
[1739238546853,0.03717898,203.85,203.82,9.10004009]
[1739238547954,0.03717898,203.85,203.8,0.03569329]
[1739238549453,0.03717898,203.85,203.8,4.94149329]
[1739238550163,0.03717898,203.85,203.8,0.03569329]
[1739238552664,0.03717898,203.85,203.79,7.4202629]
[1739238552963,0.03717898,203.85,203.76,9.10004009]
[1739238553159,1.96,203.88,203.76,9.10004009]
[1739238553759,0.03346815,203.84,203.82,9.10004009]
[1739238553964,1.96,203.93,203.82,9.10004009]
[1739238554164,1.96,203.93,203.88,9.10004009]
[1739238555364,1.99229843,203.93,203.88,9.13654657]
[1739238556862,1.99229843,203.93,203.91,9.10004009]
[1739238557261,0.03229843,203.93,203.91,9.10004009]
[1739238557461,0.03229843,203.93,203.88,9.13654657]
[1739238557764,0.03229843,203.93,203.91,9.10004009]
[1739238559069,0.03229843,203.93,203.91,14.00334009]
[1739238559371,0.03229843,203.93,203.91,9.10004009]
[1739238563162,0.03229843,203.93,203.91,14.00334009]
[1739238563366,0.03229843,203.93,203.91,9.10004009]
[1739238569870,1.96,204.0,203.93,4.9028]
[1739238570073,9.10004009,204.08,203.95,9.10004009]
[1739238570372,4.9,204.05,203.95,9.10004009]
[1739238571069,0.03581986,204.02,203.98,0.03558482]
[1739238571573,1.96,204.01,203.98,0.03558482]
[1739238573078,6.861,204.01,203.98,0.03558482]
[1739238576778,1.96,204.01,203.98,0.03558482]
[1739238577580,6.8611,204.01,203.98,0.03558482]
[1739238578280,4.9012,204.0,203.98,0.03558482]
[1739238580173,6.861,204.01,203.98,0.03558482]
[1739238580374,1.96,204.01,203.98,0.03558482]
[1739238585381,4.9014,204.0,203.98,0.03558482]
[1739238586278,1.96,204.01,203.98,0.03558482]
[1739238586582,6.861,204.01,203.98,0.03558482]
[1739238587680,1.96,204.01,203.98,0.03558482]
[1739238587879,0.03581986,204.02,203.98,9.13562491]
[1739238588082,0.03581986,204.02,204.01,9.10004009]
[1739238589495,1.96,204.07,204.01,9.10004009]
[1739238589794,1.96,204.07,204.02,4.9005]
[1739238590694,1.99260665,204.07,204.02,4.93696114]
[1739238590989,0.03260665,204.07,204.02,4.93696114]
[1739238591191,0.03260665,204.07,204.04,9.10004009]
[1739238591596,0.03260665,204.07,204.02,0.03646114]
[1739238593298,0.03260665,204.07,204.04,9.10004009]
[1739238593790,0.03260665,204.07,204.04,14.00024009]
[1739238595790,1.96,204.13,204.04,9.10004009]
[1739238596096,1.96,204.13,204.05,9.10004009]
[1739238596800,6.8581,204.13,204.05,9.10004009]
[1739238597099,0.03572045,204.11,204.07,0.03097825]
[1739238597999,4.93442045,204.11,204.07,0.03097825]
[1739238598201,0.03572045,204.11,204.07,0.03097825]
[1739238598493,4.93452045,204.11,204.07,0.03097825]
[1739238599903,0.03572045,204.11,204.07,0.03097825]
[1739238600397,0.03572045,204.11,204.08,9.10004009]
[1739238600898,0.03572045,204.11,204.08,13.99904009]
[1739238601102,0.03572045,204.11,204.08,9.10004009]
[1739238601400,0.03572045,204.11,204.07,0.03097825]
[1739238604702,0.03572045,204.11,204.08,9.10004009]
[1739238604998,0.03572045,204.11,204.1,4.8988]
[1739238605403,1.96,204.13,204.08,9.10004009]
[1739238605606,1.96,204.18,204.12,13.99834009]
[1739238606400,1.96,204.18,204.12,9.10004009]
[1739238606594,0.03663145,204.17,204.12,9.10004009]
[1739238606799,0.03663145,204.17,204.13,0.03544052]
[1739238611808,0.03663145,204.17,204.13,4.93324052]
[1739238612105,0.03663145,204.17,204.13,0.03544052]
[1739238614803,4.05023145,204.17,204.13,0.03544052]
[1739238615004,13.15027154,204.17,204.02,12.68004009]
[1739238615305,9.10004009,204.14,204.02,9.10004009]
[1739238615507,4.8988,204.11,204.02,9.10004009]
[1739238615698,4.8612,204.13,203.99,9.10004009]
[1739238616298,0.03634583,204.08,204.04,0.03571375]
[1739238616805,1.96,204.07,204.04,0.03571375]
[1739238617501,0.1186,204.15,204.05,9.10004009]
[1739238617698,0.1186,204.15,204.11,9.10004009]
[1739238618700,0.15241005,204.15,204.11,0.03299943]
[1739238620204,3.06851005,204.15,204.11,0.03299943]
[1739238620407,4.1337,204.14,204.11,0.03299943]
[1739238621104,0.1186,204.13,204.11,0.03299943]
[1739238624013,4.8988,204.1,203.99,9.10004009]
[1739238624313,9.21864009,204.13,203.99,9.10004009]
[1739238624502,9.21864009,204.13,204.0,4.9011]
[1739238624811,9.21864009,204.13,203.99,9.10004009]
[1739238625005,0.0334734,204.08,204.04,0.03466322]
[1739238625201,0.0334734,204.08,203.96,9.10004009]
[1739238625403,0.1186,204.07,203.96,9.10004009]
[1739238626207,4.8997,204.06,203.96,9.10004009]
[1739238626412,0.03262814,204.04,203.99,0.03538435]
[1739238630208,4.9007,204.02,203.99,0.03538435]
[1739238630714,0.1186,204.01,203.99,0.03538435]
[1739238631109,0.1186,204.01,203.93,9.10004009]
[1739238631313,5.0196,204.01,203.93,9.10004009]
[1739238632318,0.0328646,203.99,203.95,0.03775284]
[1739238633315,4.9342646,203.99,203.95,0.03775284]
[1739238634421,0.0328646,203.99,203.95,0.03775284]
[1739238637020,0.1186,204.01,203.96,9.10004009]
[1739238637217,0.1186,204.01,204.0,9.10004009]
[1739238637918,6.8381,204.05,204.0,9.10004009]
[1739238638421,6.87381158,204.05,204.0,9.13205298]
[1739238638724,6.87381158,204.05,204.0,14.03315298]
[1739238639423,0.03571158,204.05,204.03,9.10004009]
[1739238640223,0.03571158,204.05,204.03,14.00034009]
[1739238640427,0.03571158,204.05,204.03,9.10004009]
[1739238643126,9.9609,204.12,204.03,9.10004009]
[1739238643127,0.1186,204.11,204.03,9.10004009]
[1739238643326,0.1186,204.11,204.07,9.10004009]
[1739238644328,0.15429055,204.11,204.07,9.13454348]
[1739238644623,0.15429055,204.11,204.07,0.03450339]
[1739238644827,4.8988,204.1,204.07,0.03450339]
[1739238645025,0.15429055,204.11,204.07,0.03450339]
[1739238645326,5.05309055,204.11,204.07,0.03450339]
[1739238645529,0.15429055,204.11,204.07,0.03450339]
[1739238646326,5.05279055,204.11,204.07,0.03450339]
[1739238646928,0.15429055,204.11,204.07,0.03450339]
[1739238651129,0.1186,204.1,204.07,0.03450339]
[1739238651532,0.1186,204.1,204.07,14.03394348]
[1739238651929,0.1186,204.1,204.07,9.13454348]
[1739238652132,0.1186,204.1,204.08,4.8992]
[1739238652832,0.03569055,204.11,204.1,4.8988]
[1739238653031,0.1186,204.15,204.1,9.10004009]
[1739238653335,0.1186,204.15,204.14,9.10004009]
[1739238654227,0.1186,204.15,204.12,0.03539975]
[1739238654633,0.1186,204.15,204.11,9.10004009]
[1739238654834,0.1186,204.15,204.11,9.13673963]
[1739238661147,9.10004009,204.12,204.0,194.0]
[1739238661341,5.8713,204.11,203.99,9.10004009]
[1739238661738,0.1186,204.1,203.99,9.10004009]
[1739238661948,4.8995,204.08,203.99,9.10004009]
[1739238662248,0.03538342,204.06,204.01,0.03177751]
[1739238663351,0.1186,204.05,204.01,0.03177751]
[1739238664552,4.9007,204.02,204.01,0.03177751]
[1739238665049,4.9005,204.03,204.01,0.03177751]
[1739238666146,0.1186,204.05,204.01,0.03177751]
[1739238667549,4.9005,204.03,204.01,0.03177751]
[1739238668243,4.9005,204.03,203.96,9.10004009]
[1739238668550,4.9007,204.02,203.96,9.10004009]
[1739238669052,0.1186,204.05,203.96,9.10004009]
[1739238669243,5.0188,204.05,203.96,9.10004009]
[1739238669440,5.0188,204.05,203.98,0.03124242]
[1739238669441,0.03514512,204.03,203.98,0.03124242]
[1739238671749,4.9014,203.99,203.98,0.03124242]
[1739238671948,0.1186,203.99,203.98,0.03124242]
[1739238672449,5.02,203.99,203.98,0.03124242]
[1739238673146,4.9017,203.98,203.9,9.10004009]
[1739238673753,5.02,203.99,203.9,9.10004009]
[1739238674253,0.03353186,203.97,203.92,0.03254317]
[1739238680361,4.9027,203.94,203.92,0.03254317]
[1739238680560,4.9027,203.94,203.87,9.10004009]
[1739238680761,0.1186,203.93,203.87,9.10004009]
[1739238680959,4.9027,203.94,203.87,9.10004009]
[1739238681157,0.1186,203.93,203.87,9.10004009]
[1739238681364,4.9024,203.95,203.87,9.10004009]
[1739238681866,0.03773242,203.93,203.89,0.03748876]
[1739238684564,4.94063242,203.93,203.89,0.03748876]
[1739238684760,0.03773242,203.93,203.89,0.03748876]
[1739238685867,3.16443242,203.93,203.89,0.03748876]
[1739238687568,3.16443242,203.93,203.84,9.10004009]
[1739238687867,3.16443242,203.93,203.83,4.905]
[1739238687868,4.1677,203.92,203.83,4.905]
[1739238688768,0.03113575,203.9,203.85,0.03093732]
[1739238689268,0.1186,203.89,203.85,0.03093732]
[1739238691067,4.9041,203.88,203.85,0.03093732]
[1739238691262,0.1186,203.89,203.85,0.03093732]
[1739238691468,4.9045,203.86,203.85,0.03093732]
[1739238691772,4.9045,203.86,203.78,9.10004009]
[1739238691969,0.1186,203.89,203.78,9.10004009]
[1739238692163,4.9048,203.85,203.78,9.10004009]
[1739238692570,5.0239,203.84,203.75,9.10004009]
[1739238692764,0.03281494,203.84,203.75,9.10004009]
[1739238692966,0.1186,203.83,203.75,9.10004009]
[1739238693171,4.9056,203.82,203.75,9.10004009]
[1739238693475,4.1672,203.83,203.75,9.10004009]
[1739238696572,4.1672,203.83,203.77,4.9067]
[1739238696969,4.1672,203.83,203.76,4.9069]
[1739238697273,4.1672,203.83,203.78,9.10004009]
[1739238697666,4.20107604,203.83,203.78,9.10004009]
[1739238698373,4.20107604,203.83,203.78,14.00644009]
[1739238698580,0.15247604,203.83,203.78,9.10004009]
[1739238699076,0.15247604,203.83,203.79,4.906]
[1739238699267,0.15247604,203.83,203.78,9.10004009]
[1739238699472,0.15247604,203.83,203.79,4.906]
[1739238699876,0.15247604,203.83,203.78,9.10004009]
[1739238701073,0.15247604,203.83,203.79,4.906]
[1739238701777,0.15247604,203.83,203.78,9.10004009]
[1739238701977,0.15247604,203.83,203.78,14.00644009]
[1739238703074,0.15247604,203.83,203.78,9.10004009]
[1739238703875,0.15247604,203.83,203.8,5.82073285]
[1739238706781,0.15247604,203.83,203.82,5.82073285]
[1739238706982,0.1186,203.83,203.82,5.82073285]
[1739238710285,0.1186,203.83,203.8,5.82073285]
[1739238710981,5.05660002,203.84,203.8,5.82073285]
[1739238712084,4.9053,203.83,203.8,5.82073285]
[1739238712576,0.15150002,203.84,203.78,5.82073285]
[1739238712774,4.9055,203.82,203.78,5.82073285]
[1739238712976,5.8584286,203.83,203.76,5.82073285]
[1739238713182,5.82073285,203.83,203.76,5.82073285]
[1739238713383,0.03375695,203.82,203.76,5.82073285]
[1739238713781,4.9058,203.81,203.76,5.82073285]
[1739238713986,0.03375695,203.82,203.76,5.82073285]
[1739238714177,3.89135695,203.82,203.76,5.82073285]
[1739238714374,3.89135695,203.82,203.67,3.8415]
[1739238714375,5.82073285,203.81,203.74,5.82073285]
[1739238714777,0.03170506,203.8,203.74,5.82073285]
[1739238714978,5.025,203.79,203.74,5.82073285]
[1739238715485,0.1186,203.79,203.74,5.82073285]
[1739238715789,4.9065,203.78,203.74,5.82073285]
[1739238717084,0.1186,203.79,203.74,5.82073285]
[1739238717289,0.1186,203.79,203.76,5.82073285]
[1739238719094,0.1186,203.79,203.78,5.82073285]
[1739238721193,0.1186,203.79,203.76,5.82073285]
[1739238721396,4.9066,203.78,203.74,5.82073285]
[1739238721597,0.1186,203.79,203.74,5.82073285]
[1739238722394,4.9065,203.78,203.74,5.82073285]
[1739238722893,0.1186,203.79,203.74,5.82073285]
[1739238723894,4.9068,203.77,203.74,5.82073285]
[1739238725091,0.1186,203.79,203.74,5.82073285]
[1739238725492,5.025,203.79,203.76,5.82073285]
[1739238725692,0.1186,203.79,203.76,5.82073285]
[1739238726595,5.0249,203.79,203.76,5.82073285]
[1739238727096,4.9067,203.78,203.72,5.82073285]
[1739238727294,7.8272,203.78,203.72,5.82073285]
[1739238727497,0.03383928,203.77,203.72,5.82073285]
[1739238727797,4.907,203.76,203.72,5.82073285]
[1739238728291,4.9072,203.75,203.7,5.82073285]
[1739238728596,4.94270877,203.75,203.7,5.82073285]
[1739238728790,0.1186,203.74,203.62,3.58]
[1739238728991,0.1186,203.74,203.73,5.82073285]
[1739238729996,0.03191173,203.76,203.73,5.82073285]
[1739238730196,0.03191173,203.76,203.75,5.82073285]
[1739238730399,0.1186,203.79,203.75,5.82073285]
[1739238730702,0.1527117,203.79,203.78,5.82073285]
[1739238731197,0.1527117,203.79,203.76,5.82073285]
[1739238731398,0.1186,203.79,203.76,5.82073285]
[1739238734797,0.1186,203.79,203.74,5.82073285]
[1739238735200,0.15379147,203.79,203.74,5.82073285]
[1739238736909,5.82073285,203.75,203.68,5.82073285]
[1739238737206,0.03685101,203.74,203.66,5.82073285]
[1739238737407,0.1186,203.74,203.66,5.82073285]
[1739238737603,0.03384876,203.72,203.66,5.82073285]
[1739238737997,0.03384876,203.72,203.68,5.82073285]
[1739238739508,0.03384876,203.72,203.7,5.82073285]
[1739238742517,0.03384876,203.72,203.7,10.72913285]
[1739238742816,0.1186,203.74,203.7,5.82073285]
[1739238743016,0.1186,203.74,203.73,5.82073285]
[1739238745313,0.1186,203.74,203.71,5.85287268]
[1739238745914,0.1186,203.74,203.73,5.82073285]
[1739238748316,0.1186,203.74,203.71,5.85287268]
[1739238748816,5.0261,203.74,203.71,5.85287268]
[1739238749518,0.1186,203.74,203.71,5.85287268]
[1739238752418,5.0261,203.74,203.71,5.85287268]
[1739238752923,5.0261,203.74,203.71,0.03213983]
[1739238753621,4.9078,203.73,203.71,0.03213983]
[1739238755118,0.1186,203.74,203.71,0.03213983]
[1739238755424,4.9079,203.72,203.71,0.03213983]
[1739238755627,5.82073285,203.73,203.61,5.82073285]
[1739238755816,10.72943285,203.69,203.63,5.82073285]
[1739238756023,5.82073285,203.71,203.63,5.82073285]
[1739238756225,0.1186,203.74,203.69,5.82073285]
[1739238756521,0.1186,203.74,203.73,5.82073285]
[1739238756724,0.15148435,203.74,203.73,5.82073285]
[1739238756919,0.03288435,203.74,203.73,5.82073285]
[1739238757221,0.1186,203.79,203.73,5.82073285]
[1739238757427,0.1186,203.79,203.78,5.82073285]
[1739238760328,81.44431151,203.81,203.78,5.82073285]
[1739238760631,81.44431151,203.81,203.8,5.82073285]
[1739238761229,0.03548193,203.81,203.8,5.82073285]
[1739238764034,0.03548193,203.81,203.8,10.72673285]
[1739238765830,0.03548193,203.81,203.8,5.82073285]
[1739238766136,5.82073285,203.93,203.8,5.82073285]
[1739238766331,5.82073285,203.93,203.86,5.82073285]
[1739238766332,12.86643285,203.93,203.86,5.82073285]
[1739238767334,0.03267517,203.92,203.87,0.03430106]
[1739238768432,4.9035,203.91,203.87,0.03430106]
[1739238769936,4.9037,203.9,203.87,0.03430106]
[1739238771030,4.904,203.89,203.87,0.03430106]
[1739238771838,5.82073285,203.91,203.87,0.03430106]
[1739238772135,4.9041,203.88,203.87,0.03430106]
[1739238772336,5.82073285,203.91,203.87,0.03430106]
[1739238772539,4.9039,203.89,203.87,0.03430106]
[1739238773040,4.904,203.89,203.87,0.03430106]
[1739238773838,4.9036,203.9,203.87,0.03430106]
[1739238776746,4.9033,203.91,203.87,0.03430106]
[1739238777039,0.03267517,203.92,203.87,0.03430106]
[1739238777242,0.03267517,203.92,203.88,5.82073285]
[1739238778147,4.93587517,203.92,203.88,5.82073285]
[1739238778536,0.03267517,203.92,203.88,5.82073285]
[1739238778737,0.03267517,203.92,203.9,5.82073285]
[1739238779541,0.03267517,203.92,203.88,5.82073285]
[1739238780848,4.93597517,203.92,203.88,5.82073285]
[1739238781050,0.03267517,203.92,203.88,5.82073285]
[1739238781243,4.9035,203.91,203.88,5.82073285]
[1739238781448,0.03267517,203.92,203.88,5.82073285]
[1739238782042,0.03267517,203.92,203.87,0.03430106]
[1739238782246,5.82073285,203.91,203.87,0.03430106]
[1739238782550,4.9041,203.88,203.87,0.03430106]
[1739238783445,0.03267517,203.92,203.87,0.03430106]
[1739238783644,0.03267517,203.92,203.88,5.82073285]
[1739238783943,4.9036,203.91,203.88,5.82073285]
[1739238784141,0.03267517,203.92,203.88,5.82073285]
[1739238784346,0.03267517,203.92,203.87,0.03430106]
[1739238785740,4.904,203.89,203.87,0.03430106]
[1739238786149,0.03267517,203.92,203.87,0.03430106]
[1739238786649,4.9036,203.9,203.87,0.03430106]
[1739238787650,0.03267517,203.92,203.87,0.03430106]
[1739238790347,5.82073285,203.91,203.87,0.03430106]
[1739238790952,4.9041,203.88,203.87,0.03430106]
[1739238795560,0.03267517,203.92,203.82,5.82073285]
[1739238795561,4.9051,203.84,203.82,5.82073285]
[1739238795856,5.82073285,203.89,203.82,5.82073285]
[1739238796058,4.9047,203.86,203.82,5.82073285]
[1739238796456,5.82073285,203.91,203.82,5.82073285]
[1739238796660,0.03502525,203.86,203.84,5.82073285]
[1739238798261,0.03502525,203.86,203.85,4.9048]
[1739238798561,0.03502525,203.86,203.84,5.82073285]
[1739238803167,4.9048,203.85,203.82,0.03655812]
[1739238803359,0.03502525,203.86,203.82,0.03655812]
[1739238803866,6.82942525,203.86,203.82,0.03655812]
[1739238804168,4.9053,203.83,203.82,0.03655812]
[1739238806864,4.9048,203.85,203.82,0.03655812]
[1739238809174,11.73402525,203.86,203.82,0.03655812]
[1739238809571,4.9048,203.85,203.82,0.03655812]
[1739238811676,6.82942525,203.86,203.82,0.03655812]
[1739238811878,4.9051,203.84,203.82,0.03655812]
[1739238814677,10.72553285,203.85,203.82,0.03655812]
[1739238815779,5.82073285,203.85,203.82,0.03655812]
[1739238815974,10.72553285,203.85,203.82,0.03655812]
[1739238816980,4.9048,203.85,203.82,0.03655812]
[1739238817979,11.73402525,203.86,203.82,0.03655812]
[1739238818479,6.82942525,203.86,203.82,0.03655812]
[1739238819481,11.73422525,203.86,203.82,0.03655812]
[1739238821481,6.82942525,203.86,203.82,0.03655812]
[1739238821785,0.03502525,203.86,203.84,5.82073285]
[1739238824883,0.03502525,203.86,203.82,5.85729097]
[1739238826390,4.93952525,203.86,203.82,5.85729097]
[1739238827589,0.03502525,203.86,203.82,5.85729097]
[1739238829689,0.03502525,203.86,203.82,0.03655812]
[1739238830187,4.9051,203.84,203.82,0.03655812]
[1739238831189,4.9048,203.85,203.82,0.03655812]
[1739238831389,0.03502525,203.86,203.82,0.03655812]
[1739238831787,0.03502525,203.86,203.82,5.85729097]
[1739238832090,0.03502525,203.86,203.82,0.03655812]
[1739238832691,4.9048,203.85,203.82,0.03655812]
[1739238833992,4.93962525,203.86,203.82,0.03655812]
[1739238834493,0.03502525,203.86,203.82,5.85729097]
[1739238836094,0.03502525,203.86,203.84,5.82073285]
[1739238837192,0.03502525,203.86,203.82,5.85729097]
[1739238839891,0.03502525,203.86,203.84,5.82073285]
[1739238840489,0.03502525,203.86,203.84,10.72563285]